fUST/lending_fUST_20250523
["ID","MTS","AMOUNT","RATE_DAILY","PERIOD"]
[362102160,1747996236491,-500.0,0.00019178,2]
[362102161,1747996236518,-500.0,0.00019178,2]
[362102162,1747996236528,-500.0,0.00019178,2]
[362102163,1747996236538,-500.0,0.00019178,2]
[362102164,1747996236548,-500.0,0.00019178,2]
[362102165,1747996236559,-210.914568,0.00019178,2]
[362102166,1747996236569,-511.73,0.0001923,3]
[362102167,1747996236587,-341.14,0.00019328,3]
[362102168,1747996236602,-170.57,0.00019328,3]
[362102169,1747996236612,-682.27,0.00019338,3]
[362102170,1747996236622,-5574.99915446,0.00019348,2]
[362102171,1747996236632,-430.0,0.00019418,2]
[362102172,1747996236642,-430.0,0.00019418,2]
[362102173,1747996236652,-1055.57,0.00019418,2]
[362102174,1747996236663,-491.22,0.00019418,2]
[362102175,1747996236673,-430.0,0.00019418,2]
[362102176,1747996236683,-430.0,0.00019418,2]
[362102177,1747996236693,-430.0,0.00019418,2]
[362102178,1747996236703,-1023.63,0.00019418,2]
[362102179,1747996236713,-430.0,0.00019419,2]
[362102180,1747996236724,-430.0,0.00019419,2]
[362102181,1747996236735,-430.0,0.00019419,2]
[362102182,1747996236745,-430.0,0.00019419,2]
[362102183,1747996236756,-350.93030125,0.00019419,2]
[362102184,1747996236769,-451.32,0.00019419,2]
[362102185,1747996236779,-430.0,0.00019419,2]
[362102186,1747996236789,-430.0,0.00019419,2]
[362102187,1747996236799,-430.0,0.00019419,2]
[362102188,1747996236810,-430.0,0.00019419,2]
[362102189,1747996236820,-432.74,0.00019419,2]
[362102190,1747996236831,-430.0,0.00019419,2]
[362102191,1747996236841,-487.93,0.00019419,2]
[362102192,1747996236851,-430.0,0.00019419,2]
[362102193,1747996236861,-1274.2,0.00019419,2]
[362102194,1747996236871,-430.0,0.00019419,2]
[362102195,1747996236881,-352.01052743,0.00019419,2]
[362102196,1747996236890,-430.0,0.00019419,2]
[362102197,1747996236900,-452.75,0.00019419,2]
[362102198,1747996236910,-5574.99915446,0.0001959,2]
[362102199,1747996236919,-430.0,0.00019692,2]
[362102200,1747996236929,-430.0,0.00019692,2]
[362102201,1747996236939,-1055.57,0.00019692,2]
[362102202,1747996236949,-491.22,0.00019692,2]
[362102203,1747996236959,-288.35218839,0.00019692,2]
[362102204,1747996236968,-430.0,0.00019692,2]
[362102205,1747996236979,-430.0,0.00019692,2]
[362102206,1747996236989,-1023.63,0.00019692,2]
[362102207,1747996236998,-430.0,0.00019693,2]
[362102208,1747996237008,-430.0,0.00019693,2]
[362102209,1747996237020,-430.0,0.00019693,2]
[362102210,1747996237030,-430.0,0.00019693,2]
[362102211,1747996237040,-451.32,0.00019693,2]
[362102212,1747996237050,-430.0,0.00019693,2]
[362102213,1747996237060,-430.0,0.00019693,2]
[362102214,1747996237070,-430.0,0.00019693,2]
[362102215,1747996237080,-430.0,0.00019693,2]
[362102216,1747996237090,-487.93,0.00019693,2]
[362102217,1747996237100,-430.0,0.00019693,2]
[362102218,1747996237110,-1274.2,0.00019693,2]
[362102219,1747996237120,-430.0,0.00019693,2]
[362102220,1747996237130,-430.0,0.00019693,2]
[362102221,1747996237140,-452.75,0.00019693,2]
[362102222,1747996237150,-5574.99915446,0.00019831,2]
[362102223,1747996237159,-180.348333,0.00019958,2]
[362102224,1747996237170,-430.0,0.00019966,2]
[362102225,1747996237180,-430.0,0.00019966,2]
[362102226,1747996237190,-1055.57,0.00019966,2]
[362102227,1747996237204,-491.22,0.00019966,2]
[362102228,1747996237214,-430.0,0.00019966,2]
[362102229,1747996237224,-430.0,0.00019966,2]
[362102230,1747996237234,-1023.63,0.00019966,2]
[362102231,1747996237244,-430.0,0.00019967,2]
[362102232,1747996237254,-430.0,0.00019967,2]
[362102233,1747996237266,-451.32,0.00019967,2]
[362102234,1747996237276,-430.0,0.00019967,2]
[362102235,1747996237288,-430.0,0.00019967,2]
[362102236,1747996237298,-430.0,0.00019967,2]
[362102237,1747996237308,-430.0,0.00019967,2]
[362102238,1747996237318,-487.93,0.00019967,2]
[362102239,1747996237328,-430.0,0.00019967,2]
[362102240,1747996237337,-1274.2,0.00019967,2]
[362102241,1747996237347,-430.0,0.00019967,2]
[362102242,1747996237359,-430.0,0.00019967,2]
[362102243,1747996237368,-452.75,0.00019967,2]
[362102244,1747996237378,-749.96083958,0.00019984,2]
[362102245,1747996237388,-524.285281,0.00019996,2]
[362102246,1747996237397,-158.01,0.0002,2]
[362102247,1747996237407,-2676.1757333,0.0002,2]
[362102248,1747996237417,-1501.80376986,0.0002,5]
[362102249,1747996237427,-5574.99915446,0.00020072,2]
[362102250,1747996237437,-510.50521,0.00020187,2]
[362102251,1747996237446,-430.0,0.0002024,2]
[362102252,1747996237458,-430.0,0.0002024,2]
[362102253,1747996237467,-1055.57,0.0002024,2]
[362102254,1747996237478,-491.22,0.0002024,2]
[362102255,1747996237488,-430.0,0.0002024,2]
[362102256,1747996237498,-430.0,0.0002024,2]
[362102258,1747996237508,-1023.63,0.0002024,2]
[362102259,1747996237520,-232.02060622,0.00020241,2]
[362102260,1747996237530,-451.32,0.00020241,2]
[362102262,1747996237539,-430.0,0.00020241,2]
[362102263,1747996237549,-430.0,0.00020241,2]
[362102264,1747996237558,-430.0,0.00020241,2]
[362102265,1747996237568,-430.0,0.00020241,2]
[362102266,1747996237579,-487.93,0.00020241,2]
[362102267,1747996237588,-430.0,0.00020241,2]
[362102268,1747996237598,-1274.2,0.00020241,2]
[362102269,1747996237608,-430.0,0.00020241,2]
[362102270,1747996237617,-430.0,0.00020241,2]
[362102271,1747996237627,-452.75,0.00020241,2]
[362102272,1747996237637,-158.2090311,0.00020247,2]
[362102273,1747996237647,-570.1314833,0.00020247,2]
[362102274,1747996237656,-309.217942,0.00020247,2]
[362102275,1747996237666,-158.2090311,0.00020247,2]
[362102276,1747996237675,-537.9134881,0.00020247,2]
[362102277,1747996237685,-158.2090311,0.00020247,2]
[362102278,1747996237695,-5574.99915446,0.00020314,3]
[362102279,1747996237705,-500.0,0.00020514,2]
[362102280,1747996237715,-500.0,0.00020514,2]
[362102281,1747996237725,-500.0,0.00020514,2]
[362102282,1747996237735,-500.0,0.00020514,2]
[362102283,1747996237746,-500.0,0.00020514,2]
[362102284,1747996237756,-500.0,0.00020514,2]
[362102285,1747996237769,-500.0,0.00020514,2]
[362102287,1747996237780,-500.0,0.00020514,2]
[362102290,1747996237791,-500.0,0.00020514,2]
[362102292,1747996237801,-500.0,0.00020514,2]
[362102293,1747996237811,-500.0,0.00020514,2]
[362102295,1747996237822,-500.0,0.00020514,2]
[362102296,1747996237831,-500.0,0.00020514,2]
[362102297,1747996237841,-252.38278451,0.00020514,2]
[362102298,1747996237853,-500.0,0.00020514,2]
[362102299,1747996237863,-500.0,0.00020514,2]
[362102300,1747996237872,-500.0,0.00020514,2]
[362102301,1747996237882,-366.29291833,0.00020514,2]
[362102302,1747996237892,-500.0,0.00020514,2]
[362102303,1747996237902,-500.0,0.00020514,2]
[362102304,1747996237912,-500.0,0.00020514,2]
[362102305,1747996237922,-500.0,0.00020514,2]
[362102307,1747996237932,-356.40504283,0.00020514,2]
[362102309,1747996237943,-500.0,0.00020514,2]
[362102311,1747996237955,-430.0,0.00020514,2]
[362102314,1747996237966,-430.0,0.00020514,2]
[362102316,1747996237975,-1055.57,0.00020514,2]
[362102318,1747996237985,-491.22,0.00020514,2]
[362102320,1747996237995,-430.0,0.00020514,2]
[362102322,1747996238006,-430.0,0.00020514,2]
[362102324,1747996238016,-1023.63,0.00020514,2]
[362102326,1747996238026,-451.32,0.00020515,2]
[362102328,1747996238037,-153.33523347,0.00020515,2]
[362102329,1747996238050,-430.0,0.00020515,2]
[362102330,1747996238059,-551.12049654,0.00020515,2]
[362102331,1747996238069,-430.0,0.00020515,2]
[362102332,1747996238079,-487.93,0.00020515,2]
[362102333,1747996238088,-430.0,0.00020515,2]
[362102334,1747996238097,-1274.2,0.00020515,2]
[362102335,1747996238107,-430.0,0.00020515,2]
[362102336,1747996238117,-430.0,0.00020515,2]
[362102337,1747996238126,-151.0,0.00020515,2]
[362102338,1747996238137,-452.75,0.00020515,2]
[362102339,1747996238148,-12647.66147447,0.00020555,3]
[362102340,1747996238159,-894.64583333,0.00020555,3]
[362102341,1747996238169,-212.48480548,0.00020555,3]
[362102342,1747996238180,-5574.99915446,0.00020555,3]
[362102343,1747996238190,-314.57823366,0.00020555,3]
[362102344,1747996238201,-21474.60378134,0.0002061,2]
[362102345,1747996238211,-682.28,0.00020698,3]
[362102346,1747996238222,-341.14,0.00020698,3]
[362102347,1747996238232,-1364.54,0.00020708,3]
[362102348,1747996238242,-160.0,0.00020762,3]
[362102349,1747996238252,-430.0,0.00020788,2]
[362102350,1747996238263,-430.0,0.00020788,2]
[362102351,1747996238274,-1055.57,0.00020788,2]
[362102352,1747996238283,-491.22,0.00020788,2]
[362102353,1747996238294,-430.0,0.00020788,2]
[362102354,1747996238304,-430.0,0.00020788,2]
[362102355,1747996238313,-1023.63,0.00020788,2]
[362102356,1747996238323,-451.32,0.00020789,2]
[362102357,1747996238333,-430.0,0.00020789,2]
[362102358,1747996238343,-430.0,0.00020789,2]
[362102359,1747996238353,-487.93,0.00020789,2]
[362102360,1747996238364,-430.0,0.00020789,2]
[362102361,1747996238374,-1274.2,0.00020789,2]
[362102362,1747996238383,-430.0,0.00020789,2]
[362102363,1747996238393,-430.0,0.00020789,2]
[362102364,1747996238404,-452.75,0.00020789,2]
[362102365,1747996238416,-5574.99915446,0.00020797,4]
[362102366,1747996238427,-587.0,0.00020853,2]
[362102367,1747996238438,-587.0,0.00020853,2]
[362102368,1747996238449,-749.96083958,0.00020889,2]
[362102369,1747996238461,-183.3221685,0.00020904,2]
[362102370,1747996238471,-176.1127668,0.00020904,2]
[362102371,1747996238482,-176.1127665,0.00020904,2]
[362102372,1747996238492,-570.1314833,0.00020904,2]
[362102373,1747996238504,-570.1314833,0.00020904,2]
[362102374,1747996238515,-176.1127667,0.00020904,2]
[362102375,1747996238525,-158.2090311,0.00020904,2]
[362102376,1747996238535,-158.2090311,0.00020904,2]
[362102377,1747996238546,-570.1314833,0.00020904,2]
[362102378,1747996238558,-570.1314833,0.00020904,2]
[362102379,1747996238569,-176.1127665,0.00020904,2]
[362102380,1747996238578,-158.2090311,0.00020904,2]
[362102381,1747996238589,-155.64966248,0.00020939,2]
[362102382,1747996238598,-1000.0,0.00021,21]
[362102383,1747996238609,-151.0,0.00021,2]
[362102384,1747996238618,-151.0,0.00021,2]
[362102385,1747996238628,-151.0,0.00021,2]
[362102386,1747996238637,-151.0,0.00021,2]
[362102387,1747996238646,-13286.31812257,0.00021,3]
[362102388,1747996238656,-200.16398902,0.00021,2]
[362102389,1747996238665,-151.866833,0.00021,2]
[362102390,1747996238675,-5574.99915446,0.00021038,4]
[362102391,1747996238685,-430.0,0.00021062,2]
[362102392,1747996238695,-430.0,0.00021062,2]
[362102393,1747996238704,-1055.57,0.00021062,2]
[362102394,1747996238714,-491.22,0.00021062,2]
[362102395,1747996238724,-430.0,0.00021062,2]
[362102396,1747996238734,-430.0,0.00021062,2]
[362102397,1747996238744,-1023.63,0.00021062,2]
[362102398,1747996238754,-451.32,0.00021063,2]
[362102399,1747996238765,-430.0,0.00021063,2]
[362102400,1747996238778,-430.0,0.00021063,2]
[362102401,1747996238788,-487.93,0.00021063,2]
[362102402,1747996238798,-430.0,0.00021063,2]
[362102403,1747996238808,-1274.2,0.00021063,2]
[362102404,1747996238818,-430.0,0.00021063,2]
[362102405,1747996238827,-430.0,0.00021063,2]
[362102406,1747996238837,-452.75,0.00021063,2]
[362102407,1747996238847,-524.285281,0.00021247,2]
[362102408,1747996238857,-5574.99915446,0.00021279,5]
[362102409,1747996238866,-430.0,0.00021336,2]
[362102410,1747996238876,-430.0,0.00021336,2]
[362102411,1747996238886,-1055.57,0.00021336,2]
[362102412,1747996238896,-491.22,0.00021336,2]
[362102413,1747996238905,-430.0,0.00021336,2]
[362102414,1747996238915,-430.0,0.00021336,2]
[362102415,1747996238924,-1023.63,0.00021336,2]
[362102416,1747996238934,-451.32,0.00021337,2]
[362102417,1747996238944,-430.0,0.00021337,2]
[362102418,1747996238953,-430.0,0.00021337,2]
[362102419,1747996238963,-487.93,0.00021337,2]
[362102420,1747996238973,-1274.2,0.00021337,2]
[362102421,1747996238983,-430.0,0.00021337,2]
[362102422,1747996238993,-430.0,0.00021337,2]
[362102423,1747996239003,-452.75,0.00021337,2]
[362102424,1747996239013,-677.868,0.0002141,2]
[362102425,1747996239023,-1015.0,0.0002147,7]
[362102426,1747996239032,-5574.99915446,0.00021521,5]
[362102427,1747996239043,-151.0,0.00021523,2]
[362102428,1747996239052,-189.385437,0.00021523,2]
[362102429,1747996239062,-1400.0,0.00021587,2]
[362102430,1747996239072,-430.0,0.0002161,2]
[362102431,1747996239081,-430.0,0.0002161,2]
[362102432,1747996239093,-1055.57,0.0002161,2]
[362102433,1747996239102,-491.22,0.0002161,2]
[362102434,1747996239112,-430.0,0.0002161,2]
[362102435,1747996239121,-430.0,0.0002161,2]
[362102436,1747996239131,-1023.63,0.0002161,2]
[362102437,1747996239141,-451.32,0.00021611,2]
[362102438,1747996239151,-483.2,0.00021611,2]
[362102439,1747996239160,-151.0,0.00021611,2]
[362102440,1747996239170,-430.0,0.00021611,2]
[362102441,1747996239180,-487.93,0.00021611,2]
[362102442,1747996239190,-151.0,0.00021611,2]
[362102443,1747996239200,-1274.2,0.00021611,2]
[362102444,1747996239210,-430.0,0.00021611,2]
[362102445,1747996239220,-430.0,0.00021611,2]
[362102446,1747996239230,-452.75,0.00021611,2]
[362102447,1747996239239,-151.0,0.00021611,2]
[362102448,1747996239249,-158.2090311,0.00021726,2]
[362102449,1747996239259,-570.1314833,0.00021726,2]
[362102450,1747996239271,-158.2090311,0.00021726,2]
[362102451,1747996239280,-570.1314833,0.00021726,2]
[362102452,1747996239292,-570.1314833,0.00021726,2]
[362102453,1747996239302,-570.1314833,0.00021726,2]
[362102454,1747996239312,-570.1314833,0.00021726,2]
[362102455,1747996239322,-1491.678946,0.00021737,2]
[362102456,1747996239332,-5574.99915446,0.00021762,5]
[362102457,1747996239342,-749.96083958,0.00021795,2]
[362102458,1747996239352,-151.0,0.00021797,2]
[362102459,1747996239362,-151.0,0.00021797,2]
[362102460,1747996239372,-151.0,0.00021797,2]
[362102461,1747996239381,-151.0,0.00021797,2]
[362102462,1747996239512,-151.0,0.00021797,2]
[362102463,1747996239524,-707.0,0.00021797,2]
[362102464,1747996239534,-2233.0,0.00021797,2]
[362102465,1747996239544,-404.0,0.00021797,2]
[362102466,1747996239554,-404.0,0.00021797,2]
[362102467,1747996239564,-151.0,0.00021849,2]
[362102468,1747996239574,-151.0,0.00021849,2]
[362102469,1747996239583,-207.4,0.00021849,2]
[362102470,1747996239593,-430.0,0.00021884,2]
[362102471,1747996239602,-430.0,0.00021884,2]
[362102472,1747996239612,-1055.57,0.00021884,2]
[362102473,1747996239622,-491.22,0.00021884,2]
[362102474,1747996239631,-430.0,0.00021884,2]
[362102475,1747996239641,-430.0,0.00021884,2]
[362102476,1747996239652,-1023.63,0.00021884,2]
[362102477,1747996239661,-151.0,0.00021885,2]
[362102478,1747996239672,-151.0,0.00021885,2]
[362102480,1747996239681,-151.0,0.00021885,2]
[362102481,1747996239691,-1129.940061,0.00021885,2]
[362102482,1747996239701,-151.0,0.00021885,2]
[362102483,1747996239711,-1129.940061,0.00021885,2]
[362102484,1747996239721,-451.32,0.00021885,2]
[362102485,1747996239731,-158.159383,0.00021885,2]
[362102486,1747996239741,-158.159383,0.00021885,2]
[362102487,1747996239751,-184.160494,0.00021885,2]
[362102488,1747996239761,-151.380611,0.00021885,2]
[362102489,1747996239774,-151.0,0.00021885,2]
[362102491,1747996239783,-430.0,0.00021885,2]
[362102493,1747996239793,-487.93,0.00021885,2]
[362102495,1747996239802,-151.0,0.00021885,2]
[362102497,1747996239812,-151.0,0.00021885,2]
[362102498,1747996239822,-1274.2,0.00021885,2]
[362102499,1747996239831,-299.76808864,0.00021885,2]
[362102501,1747996239842,-2542.551417,0.00021885,2]
[362102503,1747996239852,-2542.551417,0.00021885,2]
[362102505,1747996239862,-408.53,0.00021885,2]
[362102507,1747996239871,-452.75,0.00021885,2]
[362102509,1747996239881,-549.840358,0.0002189,2]
[362102511,1747996239891,-549.840358,0.0002189,2]
[362102513,1747996239900,-250.968229,0.0002189,2]
[362102515,1747996239910,-153.0,0.0002189,2]
[362102516,1747996239920,-153.0,0.0002189,2]
[362102517,1747996239929,-153.0,0.0002189,2]
[362102518,1747996239939,-500.0,0.00021917,2]
[362102520,1747996239948,-200.0,0.00021917,2]
[362102522,1747996239958,-719.40659869,0.00021918,2]
[362102524,1747996239968,-719.40659869,0.00021918,2]
[362102526,1747996239977,-719.40659869,0.00021918,2]
[362102528,1747996239987,-719.40659869,0.00021918,2]
[362102530,1747996239996,-719.40659869,0.00021918,2]
[362102532,1747996240006,-719.40659869,0.00021918,2]
[362102534,1747996240015,-719.40659869,0.00021918,2]
[362102536,1747996240025,-719.40659869,0.00021918,2]
[362102538,1747996240034,-719.40659869,0.00021918,2]
[362102541,1747996240044,-719.40659869,0.00021918,2]
[362102543,1747996240053,-719.40659869,0.00021918,2]
[362102544,1747996240063,-719.40659869,0.00021918,2]
[362102546,1747996240072,-719.40659869,0.00021918,2]
[362102549,1747996240082,-719.40659869,0.00021918,2]
[362102550,1747996240091,-719.40659869,0.00021918,2]
[362102553,1747996240101,-719.40659869,0.00021918,2]
[362102555,1747996240110,-719.40659869,0.00021918,2]
[362102557,1747996240120,-719.40659869,0.00021918,2]
[362102559,1747996240132,-719.40659869,0.00021918,2]
[362102561,1747996240141,-719.40659869,0.00021918,2]
[362102563,1747996240151,-733.79473067,0.00021918,2]
[362102565,1747996240160,-733.79473067,0.00021918,2]
[362102567,1747996240170,-733.79473067,0.00021918,2]
[362102569,1747996240180,-733.79473067,0.00021918,2]
[362102571,1747996240189,-733.79473067,0.00021918,2]
[362102572,1747996240199,-733.79473067,0.00021918,2]
[362102573,1747996240209,-733.79473067,0.00021918,2]
[362102575,1747996240219,-733.79473067,0.00021918,2]
[362102576,1747996240229,-500.0,0.00021973,2]
[362102577,1747996240239,-500.63621328,0.00021973,2]
[362102578,1747996240248,-500.0,0.00021973,2]
[362102579,1747996240258,-500.0,0.00021973,2]
[362102580,1747996240268,-600.0,0.00021973,2]
[362102581,1747996240277,-500.0,0.00021973,2]
[362102582,1747996240287,-500.0,0.00021973,2]
[362102583,1747996240296,-500.91135369,0.00021973,2]
[362102584,1747996240306,-8999.97653471,0.00021999,3]
[362102585,1747996240316,-264505.27173283,0.00022,2]
[362102586,1747996240327,-2742.33205454,0.00022,2]
[362102587,1747996240336,-1000.0,0.00022,2]
[362102588,1747996240347,-1000.0,0.00022,22]
[362102589,1747996240356,-500.49690395,0.00022,2]
[362102590,1747996240366,-99535.9927118,0.00022,2]
[362102591,1747996240376,-1392.00054537,0.00022,2]
[362102592,1747996240386,-251.14129537,0.00022,2]
[362102593,1747996240395,-173.0,0.00022,2]
[362102594,1747996240406,-5574.99915446,0.00022003,6]
[362102595,1747996240416,-500.0,0.00022008,2]
[362102596,1747996240425,-500.0,0.00022055,2]
[362102597,1747996240435,-500.0,0.00022055,2]
[362102598,1747996240443,-151.0,0.00022055,2]
[362102599,1747996240453,-500.0,0.00022055,2]
[362102600,1747996240462,-500.0,0.00022055,2]
[362102601,1747996240472,-500.0,0.00022055,2]
[362102602,1747996240482,-500.0,0.00022055,2]
[362102603,1747996240491,-151.0,0.00022055,2]
[362102604,1747996240502,-500.0,0.00022055,2]
[362102605,1747996240511,-500.0,0.00022055,2]
[362102606,1747996240522,-500.0,0.00022055,2]
[362102607,1747996240532,-500.0,0.00022055,2]
[362102608,1747996240541,-500.0,0.00022055,2]
[362102609,1747996240551,-151.0,0.00022055,2]
[362102610,1747996240561,-500.0,0.00022055,2]
[362102611,1747996240571,-500.0,0.00022055,2]
[362102612,1747996240582,-151.0,0.00022055,2]
[362102613,1747996240592,-500.0,0.00022055,2]
[362102614,1747996240603,-151.0,0.00022055,7]
[362102615,1747996240612,-500.0,0.00022055,2]
[362102616,1747996240622,-151.0,0.00022055,7]
[362102617,1747996240631,-151.0,0.00022055,7]
[362102618,1747996240641,-500.0,0.00022055,2]
[362102619,1747996240651,-234.26443732,0.00022055,2]
[362102620,1747996240661,-500.0,0.00022055,2]
[362102621,1747996240671,-423.0,0.00022055,2]
[362102622,1747996240680,-536.24396676,0.00022065,2]
[362102623,1747996240690,-151.0,0.00022081,7]
[362102624,1747996240700,-151.0,0.00022082,7]
[362102625,1747996240710,-151.0,0.00022082,7]
[362102626,1747996240719,-151.0,0.00022082,7]
[362102627,1747996240729,-151.0,0.00022082,7]
[362102628,1747996240739,-187.108766,0.00022082,7]
[362102629,1747996240749,-187.108766,0.00022082,7]
[362102630,1747996240761,-186.049093,0.00022082,7]
[362102631,1747996240776,-186.049093,0.00022082,7]
[362102632,1747996240786,-818.667307,0.00022082,2]
[362102633,1747996240797,-818.667307,0.00022082,2]
[362102634,1747996240806,-151.0,0.00022082,7]
[362102635,1747996240817,-151.0,0.00022082,7]
[362102636,1747996240829,-151.0,0.00022082,7]
[362102637,1747996240838,-151.0,0.00022082,7]
[362102638,1747996240848,-500.0,0.00022082,2]
[362102639,1747996240859,-500.0,0.00022082,2]
[362102640,1747996240868,-151.0,0.00022082,2]
[362102641,1747996240877,-500.0,0.00022082,2]
[362102642,1747996240886,-500.0,0.00022082,2]
[362102643,1747996240895,-500.0,0.00022082,2]
[362102644,1747996240905,-500.0,0.00022082,2]
[362102645,1747996240914,-151.0,0.00022082,2]
[362102646,1747996240923,-500.0,0.00022082,2]
[362102647,1747996240933,-500.0,0.00022082,2]
[362102648,1747996240942,-500.0,0.00022082,2]
[362102649,1747996240952,-500.0,0.00022082,2]
[362102650,1747996240961,-500.0,0.00022082,2]
[362102651,1747996240971,-151.0,0.00022082,2]
[362102652,1747996240980,-517.96830432,0.00022082,2]
[362102653,1747996240991,-500.0,0.00022082,2]
[362102654,1747996241000,-204.37114643,0.00022082,2]
[362102655,1747996241010,-500.0,0.00022082,2]
[362102656,1747996241019,-500.0,0.00022082,2]
[362102657,1747996241029,-500.0,0.00022082,2]
[362102658,1747996241039,-500.0,0.00022082,2]
[362102659,1747996241048,-423.0,0.00022082,2]
[362102660,1747996241058,-546.33,0.000221,14]
[362102661,1747996241068,-500.0,0.0002211,2]
[362102662,1747996241077,-500.0,0.0002211,2]
[362102663,1747996241088,-208.51373565,0.0002211,2]
[362102664,1747996241098,-500.0,0.0002211,2]
[362102665,1747996241108,-500.0,0.0002211,2]
[362102666,1747996241117,-500.0,0.0002211,2]
[362102667,1747996241127,-500.0,0.0002211,2]
[362102668,1747996241137,-151.0,0.0002211,2]
[362102669,1747996241147,-500.0,0.0002211,2]
[362102670,1747996241156,-500.0,0.0002211,2]
[362102671,1747996241167,-500.0,0.0002211,2]
[362102672,1747996241178,-500.0,0.0002211,2]
[362102673,1747996241187,-500.0,0.0002211,2]
[362102674,1747996241197,-151.0,0.0002211,2]
[362102675,1747996241207,-500.0,0.0002211,2]
[362102676,1747996241216,-500.0,0.0002211,2]
[362102677,1747996241226,-500.0,0.0002211,2]
[362102678,1747996241235,-597.20897007,0.0002211,2]
[362102679,1747996241245,-500.0,0.0002211,2]
[362102680,1747996241254,-423.0,0.0002211,2]
[362102681,1747996241264,-151.0,0.0002211,7]
[362102682,1747996241274,-151.0,0.0002211,7]
[362102683,1747996241284,-151.0,0.0002211,7]
[362102684,1747996241294,-151.0,0.0002211,7]
[362102685,1747996241303,-151.0,0.0002211,7]
[362102686,1747996241313,-151.0,0.0002211,7]
[362102687,1747996241322,-318.554963,0.0002211,7]
[362102688,1747996241332,-318.554963,0.0002211,7]
[362102689,1747996241341,-151.0,0.0002211,7]
[362102690,1747996241351,-153.148394,0.0002211,7]
[362102691,1747996241361,-151.0,0.0002211,7]
[362102692,1747996241370,-151.0,0.0002211,7]
[362102693,1747996241380,-1129.940061,0.0002211,7]
[362102694,1747996241389,-1129.940061,0.0002211,7]
[362102695,1747996241399,-151.0,0.0002211,7]
[362102696,1747996241409,-158.159383,0.0002211,2]
[362102697,1747996241418,-158.159383,0.0002211,2]
[362102698,1747996241428,-151.0,0.0002211,7]
[362102699,1747996241438,-151.0,0.0002211,7]
[362102700,1747996241448,-151.0,0.0002211,7]
[362102701,1747996241458,-151.0,0.0002211,7]
[362102702,1747996241467,-151.0,0.0002211,7]
[362102703,1747996241477,-151.0,0.0002211,7]
[362102704,1747996241486,-2542.551417,0.0002211,7]
[362102705,1747996241496,-2542.551417,0.0002211,7]
[362102706,1747996241506,-500.0,0.00022137,2]
[362102707,1747996241515,-179.18451321,0.00022137,2]
[362102708,1747996241528,-230.45015584,0.00022137,2]
[362102709,1747996241539,-247.63055055,0.00022137,2]
[362102710,1747996241549,-500.0,0.00022137,2]
[362102711,1747996241559,-500.0,0.00022137,2]
[362102712,1747996241568,-290.47067365,0.00022137,2]
[362102713,1747996241578,-500.0,0.00022137,2]
[362102714,1747996241587,-500.0,0.00022137,2]
[362102715,1747996241596,-500.0,0.00022137,2]
[362102716,1747996241606,-500.0,0.00022137,2]
[362102717,1747996241615,-500.0,0.00022137,2]
[362102718,1747996241625,-151.0,0.00022137,2]
[362102719,1747996241634,-360.9298611,0.00022137,2]